Cogmind - Beta 10.2 @@@ ROGUE MODE // 2021.12.19 @ 21:19:20 Player: derk Result: Destroyed by as-60906 with Assembled Blade Performance ------------- Evolutions (0) 0 Regions Visited (3) 600 Robots Destroyed (24) 120 Value Destroyed (424) 424 Prototype IDs (23) 460 Alien Tech Used (0) 0 Bonus (274) 274 TOTAL SCORE: 1878 Bonus ------- Aligned with FarCom 300 Friendly Fire -26 Cogmind --------- Core Integrity 0/250 Matter 269/300 Energy 100/100 System Corruption 3% Temperature Cool (0) Movement Core (1350) Ox26 Location -10/Exiles Parts ------- > --- POWER (1) -------- (None) > --- PROPULSION (2) --- (None) > --- UTILITY (2) ------ Humpback > --- WEAPON (2) ------- (None) > --- INVENTORY (24) --- Light Ion Engine Nuclear Core Reinforced Deuterium Engine Fission Core Light Treads Light Treads High-capacity Storage Unit Humpback High-capacity Matter Pod (179) Heavy Armor Plating Heavy Armor Plating Improved Trap Extractor Trap Reconfigurator PSU Rigger Heavy Assault Rifle Heavy Assault Rifle Light Cannon Deploy-a-Sentry Deploy-a-Sentry Peak State ------------ > --- POWER ------------ Ion Engine > --- PROPULSION ------- Light Treads Light Treads > --- UTILITY ---------- Humpback > --- WEAPON ----------- Heavy Assault Rifle Shock Bomb Launcher > --- INVENTORY -------- Light Ion Engine Nuclear Core Reinforced Deuterium Engine Fission Core Light Treads Light Treads High-capacity Storage Unit Humpback High-capacity Matter Pod Heavy Armor Plating Heavy Armor Plating Improved Trap Extractor Trap Reconfigurator PSU Rigger Heavy Assault Rifle Heavy Assault Rifle Light Cannon Deploy-a-Sentry Deploy-a-Sentry [Rating: 17] Favorites ----------- Power Ion Engine Engine Ion Engine Propulsion Light Treads Treads Light Treads Wheel Wheel Utility Large Storage Unit Device Improved Terrain Scanner Storage Large Storage Unit Protection Light Armor Plating Weapon Heavy Assault Rifle Energy Gun EM Pulse Gun Ballistic Gun Heavy Assault Rifle Ballistic Cannon Light Cannon Launcher Shock Bomb Launcher Build | -11 -10 -10 -10 ------- Run | Scr Mat Min Exi Slots Evolved . | . . . . Power . | . . . . Propulsion . | . . . . Utility . | . . . . Weapon . | . . . . Parts Attached 21 | 8 8 1 4 Power 1 | 1 . . . Engine 1 | 1 . . . Core . | . . . . Reactor . | . . . . Propulsion 4 | 3 1 . . Treads 3 | 2 1 . . Leg . | . . . . Wheel 1 | 1 . . . Hover . | . . . . Flight . | . . . . Utility 7 | 2 3 . 2 Device 1 | 1 . . . Storage 5 | 1 2 . 2 Processor . | . . . . Hackware . | . . . . Protection 1 | . 1 . . Artifact . | . . . . Weapon 9 | 2 4 1 2 Energy Gun 1 | 1 . . . Energy Cannon . | . . . . Ballistic Gun 2 | 1 1 . . Ballistic Cannon 3 | . 2 . 1 Launcher 3 | . 1 1 1 Special Weapon . | . . . . Impact Weapon . | . . . . Slashing Weapon . | . . . . Piercing Weapon . | . . . . Special Melee Weapon . | . . . . Unidentified Prototypes . | . . . . Parts Lost 4 | . . . 4 Power 1 | . . . 1 Propulsion 1 | . . . 1 Utility . | . . . . Weapon 2 | . . . 2 Highest Loss Streak 4 | . . . 4 Average Slot Usage (%) 93 | . 99 100 86 Engine 13 | . 14 14 13 Treads 27 | . 27 28 27 Storage 21 | . 25 28 15 Ballistic Gun 13 | . 14 14 13 Ballistic Cannon 8 | . 11 9 6 Launcher 4 | . . 4 7 Naked Turns . | . . . . Heaviest Build 94 | 14 43 46 94 Greatest Support 40 | 40 40 40 40 Greatest Overweight (x) 29 | . 1 1 29 Average Overweight (x) 1 | . . 1 1 Largest Inventory Capacity 24 | 6 16 16 24 Average Capacity 18 | 5 14 16 22 Most Carried 23 | 5 16 16 23 Average Carried 15 | 2 10 15 19 Final Capacity 24 | 6 16 16 24 Final Carried 22 | 5 15 16 22 Class Distribution -------------------- 61% | Mutant 38% | Hauler-Mutant Dominant Class ---------------- Mutant | -10/Materials Mutant | -10/Mines Hauler-Mutant | -10/Exiles Resources | -11 -10 -10 -10 ----------- Run | Scr Mat Min Exi Matter Collected 667 | 295 194 157 21 Remotely . | . . . . Salvage Created 532 | 115 258 159 . Parts 46 | 5 29 12 . Haulers Intercepted 1 | . 1 . . Recyclers Shooed . | . . . . Parts Field Recycled . | . . . . Retrieved Matter . | . . . . Parts Self-Destructed . | . . . . Prevented . | . . . . Kills | -11 -10 -10 -10 ------- Run | Scr Mat Min Exi Combat Hostiles Destroyed 16 | . 7 9 . Guns 1 | . 1 . . Cannons 6 | . 3 3 . AOE 9 | . 3 6 . Classes Destroyed 8 | 2 6 . . Builder 1 | . 1 . . Tunneler 1 | 1 . . . Hauler 1 | . 1 . . Recycler 1 | 1 . . . Operator 2 | . 2 . . Watcher 2 | . 2 . . Swarmer 10 | . 3 7 . Grunt 6 | . 4 2 . Best Kill Streak 4 | 1 4 3 . Combat Bots Only 3 | . 3 3 . Max Kills in Single Turn 4 | 1 4 2 . Gunslinging . | . . . . Exploded 3 | . 3 2 . Melee . | . . . . Uniques/NPCs Destroyed . | . . . . Combat | -11 -10 -10 -10 -------- Run | Scr Mat Min Exi Damage Taken 1407 | . 311 262 834 Core 281 | . 34 28 219 Absorbed by Shields . | . . . . Core Remaining (%) 100 | 100 . . . Volleys Fired 50 | 5 23 17 5 Largest 2 | 2 2 2 2 Hottest 60 | 60 58 58 59 Shots Fired 87 | 10 42 28 7 Gun 42 | 10 19 11 2 Cannon 33 | . 22 11 . Launcher 12 | . 1 6 5 Special . | . . . . Kinetic 70 | 5 41 22 2 Thermal . | . . . . Explosive 1 | . 1 . . Electromagnetic 16 | 5 . 6 5 Robot Hit Streak 10 | 2 10 9 1 Robot Miss Streak 4 | 2 4 1 1 Penetration Max . | . . . . Secondary Targets . | . . . . Shots Hit Robots 49 | 5 24 19 1 Core Hits 33 | 2 17 11 3 Critical Hits 1 | 1 . . . Critical Kills . | . . . . Critical Parts Destroyed 1 | 1 . . . Melee Attacks . | . . . . Impact . | . . . . Slashing . | . . . . Piercing . | . . . . Sneak Attacks . | . . . . Combat Hostiles . | . . . . Follow-up Attacks . | . . . . Damage Inflicted 1171 | 68 531 409 163 Guns 350 | 68 159 123 . Cannons 358 | . 215 143 . Explosions 463 | . 157 143 163 Melee . | . . . . Ramming . | . . . . Kinetic 681 | 41 374 266 . Thermal 43 | . . 43 . Explosive 157 | . 157 . . Electromagnetic 290 | 27 . 100 163 Impact . | . . . . Slashing . | . . . . Piercing . | . . . . Highest Corruption 3 | . 1 2 3 Average Corruption 1 | . 1 1 2 Corruption Purged . | . . . . Effects 30 | . 4 9 17 Message Errors 17 | . 2 4 11 Heat Flow Errors 2 | . . . 2 Energy Discharges 6 | . 2 3 1 Data Loss (minor) 4 | . . 1 3 Targeting Errors 1 | . . 1 . Overload Shots . | . . . . Overflow Damage . | . . . . Projectiles . | . . . . Explosions . | . . . . Melee . | . . . . Knockbacks 5 | . 2 3 . Impact . | . . . . Kinetic 4 | . 2 2 . Secondary 1 | . . 1 . Self-Inflicted Damage 35 | . . 23 12 Shots 3 | . . 2 1 Rammed . | . . . . Targets Rammed . | . . . . Kicked . | . . . . Crushed . | . . . . Highest Temperature 243 | . 11 42 243 Average Temperature 39 | . 4 18 103 Received Heat Transfer 310 | . 129 81 100 Siege Activations . | . . . . Robots Corrupted . | . . . . Combat Hostiles . | . . . . Parts Fried . | . . . . Impact Corruptions . | . . . . Robots Melted . | . . . . Combat Hostiles . | . . . . Parts Melted . | . . . . Heat Transferred 50 | . . 50 . Parts Sabotaged . | . . . . Parts Stolen . | . . . . Parts Stripped . | . . . . Power Chain Reactions 2 | . . 2 . Missiles Intercepted . | . . . . Alert | -11 -10 -10 -10 ------- Run | Scr Mat Min Exi Peak Influence 248 | 10 248 148 . Initial 39 | . 6 39 . Average 72 | 3 84 69 . Maximum Alert Level 1 | . 1 . . Low Security (%) 91 | 100 81 100 . Level 1 8 | . 18 . . Level 2 . | . . . . Level 3 . | . . . . Level 4 . | . . . . Level 5 . | . . . . High Security . | . . . . Max Security . | . . . . Squads Dispatched 3 | . 3 . . Investigation 2 | . 2 . . Extermination . | . . . . Reinforcement 1 | . 1 . . Assault . | . . . . Garrison . | . . . . Intercept . | . . . . Construction Impeded . | . . . . Haulers Reinforced . | . . . . Stealth | -11 -10 -10 -10 --------- Run | Scr Mat Min Exi Distress Signals . | . . . . Communications Jammed . | . . . . Distress Signals . | . . . . Times Spotted 33 | . 16 7 10 Peak Tracking Total 12 | . 3 3 12 Tactical Retreats 1 | . . . 1 Traps | -11 -10 -10 -10 ------- Run | Scr Mat Min Exi Traps Triggered 4 | . 3 1 . Indirectly . | . . . . Trap Hack Attempts . | . . . . Triggered . | . . . . Disarmed . | . . . . Reprogrammed . | . . . . Reused . | . . . . Traps Extracted . | . . . . Installed . | . . . . Triggered . | . . . . Machines | -11 -10 -10 -10 ---------- Run | Scr Mat Min Exi Machines Disabled 6 | . 1 . 5 Max in Single Turn 2 | . 1 . 2 Machines Sabotaged . | . . . . Garrisons Compromised . | . . . . Overloaded Fab Kills . | . . . . Fab Network Shutdowns . | . . . . Hacking | -11 -10 -10 -10 --------- Run | Scr Mat Min Exi Machines Accessed 9 | . 5 1 3 Terminals 4 | . 4 . . Fabricators . | . . . . Repair Stations 1 | . 1 . . Recycling Units . | . . . . Scanalyzers . | . . . . Garrison Access . | . . . . Total Hacks 19 | . 14 1 4 Successful 14 | . 9 1 4 Failed 5 | . 5 . . Catastrophic . | . . . . Database Lockouts . | . . . . Manual 9 | . 8 . 1 Terminals 12 | . 12 . . Fabricators . | . . . . Repair Stations 2 | . 2 . . Recycling Units . | . . . . Scanalyzers . | . . . . Garrison Access . | . . . . Terminal Hacks 11 | . 6 1 4 Record 3 | . . . 3 Part Schematic 2 | . 2 . . Open Door 1 | . . 1 . Branch Access Points 1 | . 1 . . Hauler Manifests 1 | . 1 . . Zone Layout 2 | . 2 . . EX-Prototype ID Bank 1 | . . . 1 Fabricator Hacks . | . . . . Repair Station Hacks 2 | . 2 . . Scan Component 1 | . 1 . . Repair 1 | . 1 . . Recycling Unit Hacks . | . . . . Scanalyzer . | . . . . Garrison Access Hacks . | . . . . Unauthorized Hacks 1 | . 1 . . Terminals 1 | . 1 . . Track 1 | . 1 . . Fabricators . | . . . . Repair Stations . | . . . . Recycling Units . | . . . . Scanalyzers . | . . . . Garrison Access . | . . . . Data Cores Recovered 1 | . 1 . . Used 1 | . 1 . . Hacking Detections 4 | . 4 . . Full Trace Events . | . . . . Feedback Events . | . . . . Feedback Blocked . | . . . . Robot Schematics Acquired . | . . . . Robots Built . | . . . . Matter . | . . . . Time . | . . . . Total Robot Build Rating . | . . . . Part Schematics Acquired 2 | . 2 . . Parts Built . | . . . . Matter . | . . . . Time . | . . . . Total Part Build Rating . | . . . . Parts Repaired 1 | . 1 . . Time 13 | . 13 . . Parts Recycled . | . . . . Recycled Matter . | . . . . Retrieved Matter . | . . . . Retrieved Components . | . . . . Parts Scanalyzed . | . . . . Part Schematics Acquired . | . . . . Parts Damaged . | . . . . Bothacking | -11 -10 -10 -10 ------------ Run | Scr Mat Min Exi Used RIF Installer . | . . . . Robots Hacked . | . . . . Non-combat . | . . . . Combat . | . . . . Robot Hacks Applied . | . . . . Relay Couplers Released . | . . . . Robots Rewired . | . . . . Allies Hacked . | . . . . Hacks Repelled . | . . . . Allies | -11 -10 -10 -10 -------- Run | Scr Mat Min Exi Total Allies 1 | . . 1 . Largest Group 1 | . . 1 1 Highest-Rated Group 31 | . . 31 31 Highest-Rated Ally 31 | . . 31 31 Total Orders . | . . . . Ally Attacks 3 | . . 3 . Total Damage 40 | . . 40 . Kills . | . . . . Allies Corrupted . | . . . . Allies Melted . | . . . . Turrets Deployed 1 | . . . 1 Intel | -11 -10 -10 -10 ------- Run | Scr Mat Min Exi Robot Analysis Total . | . . . . Derelict Logs Recovered 2 | . . 2 . Drone Launches . | . . . . Drone Recoveries . | . . . . Exploration | -11 -10 -10 -10 ------------- Run | Scr Mat Min Exi Turns Passed 3320 | 118 863 822 1517 Spaces Moved 1640 | 57 419 421 743 Core 3 | 2 . . 1 Treads 1635 | 53 419 421 742 Legs . | . . . . Wheels 2 | 2 . . . Hover . | . . . . Flight . | . . . . Fastest Speed 50 | 50 160 180 160 Average Speed 186 | 153 175 180 197 Slowest Speed 1500 | 160 180 180 1500 Overloaded Moves . | . . . . Propulsion Burnouts . | . . . . Robots Hopped . | . . . . Cave-ins Triggered . | . . . . Exploration Rate (%) 60 | 5 73 75 88 Regions Visited 3 Branch Regions 2 Pre-discovered Areas 2 | . . 1 1 Known Exits Taken 1 | . 1 . . Unknown Exits Taken 2 | 1 . 1 . Scrap Searched . | . . . . Spaces Dug 6 | . . 6 . Terrain Destroyed 7 | . 1 6 . Melee . | . . . . Projectile . | . . . . AOE 7 | . 1 6 . Terrain Rammed . | . . . . Walls Destroyed . | . . . . Machines Disabled . | . . . . Actions | -11 -10 -10 -10 --------- Run | Scr Mat Min Exi Total 1829 | 74 505 461 789 Wait 48 | . 39 8 1 Move 1637 | 56 418 420 743 Hop . | . . . . Pick Up 46 | 4 10 7 25 Fast Attach 13 | 8 4 . 1 Attach . | . . . . Detach 3 | 1 2 . . Swap 8 | . 4 1 3 Drop 24 | . 5 8 11 Fire 50 | 5 23 17 5 Melee . | . . . . Ram . | . . . . Kick . | . . . . Crush . | . . . . Escape Stasis . | . . . . Rewire . | . . . . Trap . | . . . . Miscellaneous . | . . . . Route ------- -11/Scrapyard -10/Materials (discovered 4 exits: [*Mat x2] / *Min x2) -10/Mines (discovered 2 exits: [*Mat] / *Exi) -10/Exiles (discovered 2 exits: *Min x2) History --------- Turn | Location | Event 21 | -11/Scrapyard | Discovered new exit (range 15) 119 | -11/Scrapyard | Entered Materials 304 | -10/Materials | Build established: Mutant 428 | -10/Materials | Discovered new exit (range 16) 493 | -10/Materials | Discovered new exit (range 16) 596 | -10/Materials | Discovered new exit (range 14) 665 | -10/Materials | Discovered new exit (range 9) 665 | -10/Materials | Identified exit to Mines 817 | -10/Materials | Repaired Lgt. Treads 982 | -10/Materials | Entered Mines 1014 | -10/Mines | Learned Materials garrison access intel 1120 | -10/Mines | Discovered new exit (range 3) 1355 | -10/Mines | Escorted by a lone wolf Derelict 1375 | -10/Mines | Learned location of Storage (-7) 1393 | -10/Mines | Met a Derelict who couldn't figure out how to use a Trap Extractor 1504 | -10/Mines | Received a Rocket Launcher from a helpful Derelict 1602 | -10/Mines | Found a hidden stash of uninstalled traps 1797 | -10/Mines | Deemed a non-threat by the Exiles lab entrance 1797 | -10/Mines | Discovered new exit (range 5) 1804 | -10/Mines | Entered Exiles 1804 | -10/Exiles | Accompanied by 1 ally 1805 | -10/Exiles | Identified exit to Mines 1885 | -10/Exiles | Met 8R-AWN 1911 | -10/Exiles | Met EX-HEX 2129 | -10/Exiles | Met EX-DEC 2162 | -10/Exiles | Visited The Gauntlet 2336 | -10/Exiles | Build established: Hauler-Mutant 2373 | -10/Exiles | Learned location of Zion (-7) 2421 | -10/Exiles | Met EX-BIN 2449 | -10/Exiles | Aligned with FarCom system 2451 | -10/Exiles | Given EX-Vault access code 2531 | -10/Exiles | Opened EX-Vault 2545 | -10/Exiles | Found Deploy-a-Sentry 2548 | -10/Exiles | Found Deploy-a-Sentry 2551 | -10/Exiles | Found Deploy-a-Sentry 2562 | -10/Exiles | Found PSU Rigger 2565 | -10/Exiles | Found Trap Reconfigurator 2610 | -10/Exiles | Warned to stay clear of 0b10 Research branches 2905 | -10/Exiles | DAS Turret deployed 3275 | -10/Exiles | Attacked by the Exiles 3309 | -10/Exiles | Core integrity fell below 50% 3320 | -10/Exiles | Core integrity fell below 20% 3321 | -10/Exiles | Destroyed by as-60906 with Assembled Blade Last Messages --------------- 02903_ Dropped Deploy-a-Sentry. 02905_ DAS Turret deployed. 02906_ Dropped Hvy. Assault Rifle. 02906_ Dropped Lgt. Armor Plating. 03079_ Acquired Rigged Rnf. Deuterium Engine. 03088_ Acquired Unknown Power Core. 03097_ Acquired Rigged Nuclear Core. 03274_ Machine disabled. 03275_ EXILES: Hostile robot within lab perimeter. Defensive protocols time, folks! 03277_ EX-DEC: "Let's see what this bad boy can do..." 03277_ EX-DEC deploys DAS Turret. 03284_ EX-BIN: "I just want to science!" 03303_ Ion Engine destroyed. 03303_ System corrupted by crushing effect (+1). 03305_ Lgt. Treads destroyed. 03307_ Lgt. Treads severed. 03311_ Shock Bomb Launcher destroyed. 03314_ Hvy. Assault Rifle destroyed. 03320_ as-76116 destroyed. Map ----- +----------------------------------------------------+ | ?????????????????????????????????????????????????? | | ?????????????????????????????????????????????????? | | ????????????????????????????????????????????###### | | ????????????????????????????????????????????#""""" | | ????????????????????????????????????????????#"""" | | ????????????????????????????????????????????#""X" | | ????????????????????????????????????????????#" | | ?>??????????????????????????????????????????#" | | ????????????????????????????????????????????#""""" | | ????????????????????????????????????????????##"### | | ???????????????????????????????????????????? "??? | | ???????????????????????????????????????????"""???? | | ???????????????????????????????????????????"""???? | | ???????????????????#######???????????????????????? | | ????? ######???????#!!! "#???????????????????????? | | ????? #""#??????# "#???????????????????????? | | ????? ??????# "#???????????????????????? | | ????? #????## ""#???????????#######?????? | | ????? #####" ""#??????????? """#?????? | | ????? ##" ""???????????#"" """#?????? | | ?????? #"" #????????????#"" #?????? | | ????????# #????????????#"" #?????? | | ???????????# ##???????????#"" "#?????? | | ????????????## "#???????????# ""#?????? | | ?????########" ###?????????#"" ""??????? | | ?????# !!""""" a@##??????????# #???????? | | ?????#! "###"" %aa######???### ###?##### | | ?????#! ![t"#?##" a """#####X# #"###"""" | | ?????#! ! ##??#" aa """""" " | | ?????# !""""""###???#"# "" """ | | ?????#########??????#### " " | | ???????????????????????### | | ?????????????????????????### | | ???????????????????????????## | | ????????????????????????????## | | ?????????????????????????????##" | | ??????????????????????????????#""" | | ?????????????????????????????##" # | | ?????????????????????????????#"" ""## | | ?????????????????????????????#""" """##? | | ?????????????????????????????" """##?? | | ????????????????????????????? ""#??? | | ????????????????????????????? ##### | | ????????????????????????????# ## | | ????????????????????????????# | | ?????????????????????????????# | | ?????????????????????????????# | | ?????????????????????????????## | | ??????????????????????????????#" | | ??????????????????????????????#"""" | +----------------------------------------------------+ Best States ------------- Heat Dissipation 25 Energy Generation 10 Energy Capacity 250 Matter Stores 300 Matter Capacity 300 Sight Range 16 Terrain Scan Range 16 Terrain Scan Density 10 Armor Coverage 150 Evasion (%) 40 Recoil Reduction 2 Item Schematics ----------------- Hcp. Battery | -10/Materials | Hacked Hcp. Storage Unit | -10/Materials | Hacked Robot Schematics ------------------ None Fabricated ------------ Nothing Alien Tech Used ----------------- None Achievements -------------- None Challenges ------------ None Game ------ Seed ControlProcessingCore Manual? 0 Play Time 00:20:22 Cumulative 314.2 hours Start 2021.12.19 @ 20:58:36 End 2021.12.19 @ 21:19:20 Sessions 1 Manual Loads 0 Difficulty Rogue Special Mode None Game No. 119 Rogue 119 Adventurer 0 Explorer 0 Win Type - Total 12 Types 10/0/1/1/0/0/0/0/0 Lore% 66 Gallery% 87 Achievement% 67 Wizard Run 0 Options --------- ASCII 0 Keyboard 0 Movement Numpad Keybinds 0 Fullscreen 1 Font 18/SmallcapsGlow Map View 76x50 Tactical HUD 1 Map Filters NONE Filters NONE Steam 1 RUN: f44042e7-8465-42e7-b8a2-52e974a1de63